bitfinex-derivatives/quotes_SOLF0:USTF0_20250816
["timestamp","ask_amount","ask_price","bid_price","bid_amount"]
[1755365146029,8.3833,187.72,187.71,2.85]
[1755365146826,3.06,187.71,187.7,5.41018877]
[1755365147121,5.3233,187.72,187.7,5.41018877]
[1755365147323,8.3833,187.72,187.7,5.41018877]
[1755365147523,8.3833,187.72,187.71,2.85]
[1755365147929,5.3235,187.71,187.7,2.56018877]
[1755365148129,8.3835,187.71,187.7,5.41018877]
[1755365151935,3.06,187.71,187.7,5.41018877]
[1755365152135,5.3233,187.72,187.7,2.56018877]
[1755365152331,8.4033,187.72,187.71,2.95]
[1755365152731,5.3233,187.72,187.71,2.95]
[1755365152933,3.08,187.8,187.71,2.95]
[1755365153128,3.08,187.78,187.74,2.56018877]
[1755365153332,5.3223,187.76,187.75,2.95]
[1755365153537,8.4023,187.76,187.75,2.95]
[1755365155239,3.08,187.76,187.75,2.95]
[1755365155639,8.4019,187.77,187.75,2.95]
[1755365156036,3.08,187.82,187.75,2.95]
[1755365156239,3.08,187.8,187.75,2.95]
[1755365157140,3.08,187.8,187.76,2.95]
[1755365158238,5.322,187.77,187.76,2.95]
[1755365158438,8.402,187.77,187.76,2.95]
[1755365158945,5.3224,187.75,187.74,2.56018877]
[1755365159236,8.4024,187.75,187.74,5.51018877]
[1755365160540,3.08,187.75,187.74,5.51018877]
[1755365161740,8.4024,187.75,187.74,2.95]
[1755365162041,3.08,187.75,187.73,2.95]
[1755365162940,3.08,187.75,187.71,2.56018877]
[1755365163141,3.08,187.82,187.72,2.95]
[1755365163343,3.08,187.8,187.72,2.95]
[1755365163540,3.08,187.78,187.72,2.95]
[1755365170348,5.323,187.73,187.72,2.95]
[1755365175454,8.403,187.73,187.72,2.95]
[1755365176656,8.403,187.73,187.72,4.57979258]
[1755365178955,5.323,187.73,187.72,4.57979258]
[1755365179256,8.243,187.73,187.72,4.57979258]
[1755365179449,4.44593925,187.81,187.72,4.57979258]
[1755365179651,4.16129217,187.8,187.75,1.62979258]
[1755365179851,4.16129217,187.79,187.75,1.62979258]
[1755365180053,2.92,187.77,187.75,1.62979258]
[1755365180251,7.08129217,187.76,187.75,1.62979258]
[1755365186060,2.92,187.75,187.71,3.1]
[1755365186259,2.92,187.73,187.7,1.62979258]
[1755365186459,4.16129217,187.72,187.7,4.72979258]
[1755365186658,2.92,187.71,187.7,4.72979258]
[1755365187359,8.2435,187.71,187.7,1.62979258]
[1755365188560,8.2435,187.71,187.7,4.72979258]
[1755365189859,8.2435,187.71,187.7,3.1]
[1755365194862,2.92,187.71,187.67,1.62979258]
[1755365195068,4.16668039,187.7,187.68,3.1]
[1755365195267,2.92,187.69,187.68,3.1]
[1755365201270,8.2443,187.69,187.68,3.1]
[1755365204974,2.92,187.69,187.67,1.62979258]
[1755365205179,2.92,187.69,187.65,3.1]
[1755365205376,2.92,187.69,187.66,3.1]
[1755365206781,4.158719,187.68,187.66,3.1]
[1755365206982,2.92,187.67,187.66,3.1]
[1755365214188,8.2447,187.67,187.66,3.1]
[1755365219992,5.3243,187.69,187.66,3.1]
[1755365220189,5.3243,187.69,187.65,1.62979258]
[1755365220190,5.3243,187.69,187.68,1.62979258]
[1755365220391,5.3243,187.69,187.68,4.69979258]
[1755365220591,5.3239,187.7,187.69,3.07]
[1755365221685,8.3239,187.7,187.69,3.07]
[1755365221891,8.3247,187.67,187.66,4.69979258]
[1755365222390,5.3247,187.67,187.66,4.69979258]
[1755365224389,5.3243,187.69,187.67,3.07]
[1755365224692,5.3244,187.68,187.67,3.07]
[1755365224887,8.3244,187.68,187.67,3.07]
[1755365229695,5.3244,187.68,187.67,3.07]
[1755365230088,8.3244,187.68,187.67,3.07]
[1755365232495,12.4872685,187.68,187.67,3.07]
[1755365235299,3.0,187.67,187.65,3.07]
[1755365235698,3.0,187.67,187.66,3.07]
[1755365235901,7.16364709,187.67,187.66,3.07]
[1755365241212,4.16364709,187.67,187.66,3.07]
[1755365241707,7.26364709,187.67,187.66,3.07]
[1755365244205,12.58834709,187.67,187.66,3.07]
[1755365247214,9.48834709,187.67,187.66,3.07]
[1755365247807,12.58834709,187.67,187.66,3.07]
[1755365257418,4.16364709,187.67,187.63,2.83]
[1755365257623,3.1,187.65,187.63,2.83]
[1755365257924,7.26364709,187.64,187.63,2.83]
[1755365258319,12.58914709,187.64,187.63,2.83]
[1755365258825,4.16364709,187.64,187.63,2.83]
[1755365259021,3.1,187.66,187.63,2.83]
[1755365259220,4.16232858,187.65,187.63,2.83]
[1755365259417,3.1,187.65,187.63,2.83]
[1755365259722,3.1,187.64,187.63,2.83]
[1755365260522,3.1,187.65,187.63,2.83]
[1755365261225,3.1,187.69,187.63,2.83]
[1755365261423,3.1,187.67,187.63,2.83]
[1755365261619,7.2622666,187.66,187.63,2.83]
[1755365261821,4.1622666,187.65,187.63,2.83]
[1755365262025,3.1,187.66,187.63,2.83]
[1755365262316,4.1623108,187.65,187.63,2.83]
[1755365262521,3.1,187.66,187.63,2.83]
[1755365262720,4.16215321,187.65,187.63,2.83]
[1755365262923,3.1,187.66,187.63,2.83]
[1755365263125,4.16170029,187.65,187.63,2.83]
[1755365263423,3.1,187.69,187.63,2.83]
[1755365263628,4.16051345,187.68,187.63,2.83]
[1755365263826,3.1,187.66,187.63,2.83]
[1755365264124,3.1,187.69,187.64,1.62979258]
[1755365264427,3.1,187.67,187.65,2.83]
[1755365264623,4.16051345,187.66,187.65,2.83]
[1755365266221,8.4248,187.67,187.65,2.83]
[1755365266424,8.4248,187.67,187.66,4.45979258]
[1755365267325,5.3248,187.67,187.66,4.45979258]
[1755365267931,8.4248,187.67,187.66,4.45979258]
[1755365268826,5.3248,187.67,187.66,4.45979258]
[1755365269432,8.2648,187.67,187.66,4.45979258]
[1755365273634,8.2648,187.67,187.66,2.83]
[1755365278038,5.3248,187.67,187.66,2.83]
[1755365278233,4.46451489,187.74,187.66,2.83]
[1755365278438,2.94,187.72,187.71,2.99]
[1755365278732,7.09847613,187.72,187.71,2.99]
[1755365280334,4.15847613,187.72,187.71,2.99]
[1755365280637,7.09847613,187.72,187.71,2.99]
[1755365281237,12.42167613,187.72,187.71,2.99]
[1755365285242,8.2632,187.72,187.71,2.99]
[1755365286937,2.94,187.74,187.71,4.61979258]
[1755365287144,4.46451489,187.79,187.74,2.99]
[1755365287333,2.94,187.76,187.75,1.62979258]
[1755365287529,7.09011718,187.76,187.75,1.62979258]
[1755365287842,7.09011718,187.76,187.75,4.61979258]
[1755365290339,2.94,187.75,187.71,4.61979258]
[1755365290543,1.62979258,187.77,187.7,1.62979258]
[1755365290544,2.94,187.73,187.7,1.62979258]
[1755365290742,2.94,187.73,187.71,2.99]
[1755365291039,2.94,187.73,187.72,4.61979258]
[1755365291542,8.2631,187.73,187.72,4.61979258]
[1755365294042,2.94,187.73,187.72,4.61979258]
[1755365294952,8.263,187.73,187.72,4.61979258]
[1755365297952,8.2627,187.74,187.73,2.99]
[1755365298340,2.94,187.74,187.73,2.99]
[1755365305550,8.2627,187.74,187.73,2.99]
[1755365306353,12.41093066,187.74,187.73,2.99]
[1755365307551,8.2627,187.74,187.73,2.99]
[1755365309450,12.41339518,187.74,187.73,2.99]
[1755365310255,5.3227,187.74,187.73,2.99]
[1755365310450,8.2325,187.75,187.73,2.99]
[1755365311354,2.91,187.74,187.73,2.99]
[1755365311553,8.2327,187.74,187.73,2.99]
[1755365316260,12.38805057,187.74,187.73,2.99]
[1755365318159,7.06535057,187.74,187.73,2.99]
[1755365318359,2.91,187.74,187.73,2.99]
[1755365319360,2.91,187.73,187.68,2.92]
[1755365319665,5.78642319,187.74,187.69,2.92]
[1755365319666,2.91,187.71,187.69,2.92]
[1755365319962,12.39063061,187.7,187.69,2.92]
[1755365320364,4.15663061,187.7,187.69,4.54979258]
[1755365320562,2.91,187.75,187.7,2.92]
[1755365320765,7.06752017,187.74,187.73,2.92]
[1755365321858,12.39042017,187.74,187.73,2.92]
[1755365322063,7.06752017,187.74,187.72,1.62979258]
[1755365322365,2.91,187.72,187.7,4.54979258]
[1755365322564,4.15752017,187.71,187.7,4.54979258]
[1755365322769,2.91,187.7,187.69,2.92]
[1755365324867,2.91,187.7,187.69,4.54979258]
[1755365326468,12.39099278,187.7,187.69,4.54979258]
[1755365326663,12.39099278,187.7,187.69,2.92]
[1755365330269,8.2338,187.7,187.69,2.92]
[1755365332974,5.3238,187.7,187.69,2.92]
[1755365333274,5.3238,187.7,187.67,3.06]
[1755365333275,3.04,187.69,187.67,3.06]
[1755365333481,4.15729265,187.68,187.67,3.06]
[1755365333682,7.19729265,187.68,187.67,3.06]
[1755365334080,12.52189265,187.68,187.67,3.06]
[1755365335386,8.3646,187.68,187.67,3.06]
[1755365338990,3.04,187.68,187.67,3.06]
[1755365339391,8.3642,187.69,187.67,3.06]
[1755365340590,3.04,187.68,187.67,3.06]
[1755365346587,3.04,187.7,187.67,3.06]
[1755365346797,3.04,187.73,187.69,3.06]
[1755365346989,3.04,187.73,187.72,4.68979258]
[1755365347693,7.18989797,187.73,187.72,4.68979258]
[1755365347887,3.04,187.73,187.72,4.68979258]
[1755365350792,3.04,187.73,187.69,1.62979258]
[1755365350988,4.14915671,187.72,187.68,3.06]
[1755365351185,3.04,187.73,187.68,3.06]
[1755365351385,4.14931948,187.72,187.67,1.62979258]
[1755365351594,3.04,187.71,187.69,3.06]
[1755365352097,3.04,187.71,187.7,3.06]
[1755365352490,3.04,187.74,187.66,3.06]
[1755365352688,3.04,187.72,187.67,4.68979258]
[1755365352993,3.04,187.7,187.68,3.06]
[1755365353592,3.04,187.7,187.69,3.06]
[1755365355193,8.3638,187.7,187.69,3.06]
[1755365356689,5.3236,187.71,187.69,4.68979258]
[1755365356887,8.3636,187.71,187.7,3.06]
[1755365357885,8.3638,187.7,187.69,3.06]
[1755365358092,3.04,187.7,187.68,3.06]
[1755365358691,2.89,187.74,187.68,3.12]
[1755365358897,2.89,187.72,187.68,3.12]
[1755365359099,2.89,187.69,187.68,3.12]
[1755365359597,5.324,187.7,187.68,3.12]
[1755365359899,8.214,187.7,187.69,3.12]
[1755365360398,8.214,187.7,187.69,4.74979258]
[1755365363504,12.36572638,187.7,187.69,4.74979258]
[1755365365602,2.89,187.68,187.67,4.74979258]
[1755365366497,8.2144,187.68,187.67,4.74979258]
[1755365380816,5.3244,187.68,187.67,4.74979258]
[1755365381009,8.2144,187.68,187.67,4.74979258]
[1755365389021,2.89,187.68,187.67,4.74979258]
[1755365394225,7.04029585,187.68,187.67,4.74979258]
[1755365398127,4.15029585,187.68,187.67,4.74979258]
[1755365398625,7.26029585,187.68,187.67,4.74979258]
[1755365399628,7.26029585,187.68,187.67,1.62979258]
[1755365399830,7.26029585,187.68,187.67,4.48979258]
[1755365402924,7.26029585,187.68,187.67,1.62979258]
[1755365403132,3.11,187.67,187.66,1.62979258]
[1755365403632,3.11,187.67,187.66,4.48979258]
[1755365407534,7.25561823,187.67,187.65,129.76]
[1755365407730,6.0847964,187.71,187.65,129.76]
[1755365407936,11.89513632,187.7,187.65,129.76]
[1755365408136,3.11,187.68,187.65,132.62]
[1755365408433,3.11,187.66,187.65,132.62]
[1755365408833,3.11,187.66,187.65,129.76]
[1755365409532,12.53872531,187.66,187.65,129.76]
[1755365410532,4.10372531,187.66,187.65,134.24979258]
[1755365410837,4.45500382,187.72,187.66,2.86]
[1755365411037,3.11,187.67,187.66,2.86]
[1755365411236,7.21342246,187.67,187.66,2.86]
[1755365411438,4.10342246,187.67,187.66,2.86]
[1755365411636,7.21342246,187.67,187.66,2.86]
[1755365412134,3.11,187.69,187.66,4.48979258]
[1755365412335,3.11,187.69,187.68,4.48979258]
[1755365412534,7.21316958,187.69,187.68,4.48979258]
[1755365413643,7.21316958,187.69,187.68,2.86]
[1755365413940,3.11,187.68,187.67,2.86]
[1755365416736,5.3239,187.7,187.67,2.86]
[1755365416944,7.21208424,187.69,187.68,1.62979258]
[1755365417242,4.10208424,187.69,187.68,4.48979258]
[1755365417736,7.21208424,187.69,187.68,4.48979258]
[1755365418043,4.10208424,187.69,187.68,9.81419258]
[1755365418542,4.10208424,187.69,187.68,4.48979258]
[1755365418740,7.02208424,187.69,187.68,4.48979258]
[1755365420343,4.10208424,187.69,187.68,4.48979258]
[1755365420843,7.02208424,187.69,187.68,4.48979258]
[1755365427252,12.34618424,187.69,187.68,4.48979258]
[1755365434764,7.02815598,187.69,187.68,4.48979258]
[1755365435162,4.10815598,187.69,187.68,4.48979258]
[1755365436166,7.02815598,187.69,187.68,4.48979258]
[1755365438565,2.92,187.69,187.68,4.48979258]
[1755365447667,5.90612819,187.78,187.69,2.88]
[1755365447668,2.92,187.71,187.69,2.88]
[1755365447968,2.92,187.77,187.71,2.88]
[1755365448163,2.92,187.77,187.75,1.62979258]
[1755365448369,2.92,187.77,187.75,4.50979258]
[1755365448565,4.10671366,187.76,187.75,4.50979258]
[1755365448868,12.43901588,187.76,187.75,4.50979258]
[1755365449270,8.3323,187.76,187.75,4.50979258]
[1755365449973,12.43869653,187.76,187.75,4.50979258]
[1755365450369,9.42869653,187.76,187.75,4.50979258]
[1755365450671,12.43869653,187.76,187.75,4.50979258]
[1755365451881,3.01,187.76,187.75,4.50979258]
[1755365452272,3.01,187.8,187.75,1.62979258]
[1755365452473,3.01,187.78,187.77,1.62979258]
[1755365452673,7.11002133,187.78,187.77,4.51979258]
[1755365455181,4.10002133,187.78,187.77,134.05979258]
[1755365455380,5.3215,187.79,187.77,131.16979258]
[1755365455678,8.3315,187.79,187.78,2.89]
[1755365457180,3.01,187.79,187.78,2.89]
[1755365458078,5.3209,187.81,187.79,2.89]
[1755365458380,3.01,187.8,187.79,2.89]
[1755365459474,5.3209,187.81,187.79,4.51979258]
[1755365459677,3.01,187.86,187.8,129.52]
[1755365459882,3.01,187.84,187.8,129.52]
[1755365460081,5.3207,187.81,187.8,129.52]
[1755365460278,8.3307,187.81,187.8,129.52]
[1755365460480,8.3307,187.81,187.8,132.41]
[1755365463282,8.3307,187.81,187.8,129.52]
[1755365463878,5.321,187.8,187.79,1.62979258]
[1755365464080,8.331,187.8,187.79,4.51979258]
[1755365465587,5.321,187.8,187.79,4.51979258]
[1755365465985,8.331,187.8,187.79,4.51979258]
[1755365467287,5.321,187.81,187.79,4.51979258]
[1755365467489,8.331,187.81,187.8,2.89]
[1755365470291,5.3214,187.79,187.77,129.5]
[1755365470591,5.3214,187.79,187.78,4.51979258]
[1755365471190,8.3314,187.79,187.78,4.51979258]
[1755365471786,8.3314,187.79,187.78,1.62979258]
[1755365472489,8.3314,187.79,187.78,4.51979258]
[1755365472891,8.3314,187.79,187.78,1.62979258]
[1755365474291,8.3314,187.79,187.78,4.51979258]
[1755365479198,5.3214,187.79,187.78,4.51979258]
[1755365479592,8.4314,187.79,187.78,4.51979258]
[1755365482389,3.11,187.88,187.79,2.96]
[1755365482689,3.11,187.86,187.83,2.96]
[1755365482894,8.4298,187.84,187.83,2.96]
[1755365483094,3.11,187.84,187.82,4.58979258]
[1755365483897,5.3201,187.83,187.82,4.58979258]
[1755365484194,8.4301,187.83,187.82,4.58979258]
[1755365487997,3.11,187.88,187.83,2.96]
[1755365488196,3.11,187.86,187.85,2.96]
[1755365488496,12.52964539,187.86,187.85,2.96]
[1755365491103,8.4296,187.85,187.84,4.58979258]
[1755365491394,12.52994539,187.85,187.84,1.62979258]
[1755365493000,12.52994539,187.85,187.84,4.58979258]
[1755365493701,8.4296,187.85,187.84,4.58979258]
[1755365493902,12.53676061,187.85,187.84,4.58979258]
[1755365499906,9.42676061,187.85,187.84,4.58979258]
[1755365500311,12.53676061,187.85,187.84,4.58979258]
[1755365501304,4.10716061,187.85,187.84,4.58979258]
[1755365503813,12.53676061,187.85,187.84,4.58979258]
[1755365504411,7.21716061,187.85,187.84,4.58979258]
[1755365506012,4.10716061,187.85,187.84,4.58979258]
[1755365507415,7.21716061,187.85,187.84,4.58979258]
[1755365509216,3.11,187.85,187.84,4.58979258]
[1755365509818,7.20169276,187.85,187.84,4.58979258]
[1755365510316,3.11,187.85,187.84,4.58979258]
[1755365525124,7.20343923,187.85,187.84,4.58979258]
[1755365525325,7.20343923,187.85,187.84,1.62979258]
[1755365525527,7.20343923,187.85,187.84,4.57979258]
[1755365525730,3.11,187.85,187.84,4.57979258]
[1755365527129,3.11,187.85,187.82,2.95]
[1755365527332,3.11,187.85,187.84,2.95]
[1755365529226,8.3391,187.87,187.84,2.95]
[1755365529433,7.11599053,187.86,187.85,1.62979258]
[1755365529931,7.11599053,187.86,187.85,4.57979258]
[1755365535331,7.11690427,187.86,187.85,4.57979258]
[1755365535826,4.09690427,187.86,187.85,4.57979258]
[1755365536231,7.11690427,187.86,187.85,4.57979258]
[1755365536433,7.49048444,187.91,187.86,2.95]
[1755365536623,3.02,187.91,187.9,2.95]
[1755365540938,8.3379,187.91,187.9,2.95]
[1755365541437,5.3187,187.89,187.88,1.62979258]
[1755365541639,8.2187,187.89,187.88,4.55979258]
[1755365544932,8.2187,187.89,187.77,171.5]
[1755365544933,2.9,187.89,187.87,1.62979258]
[1755365545339,5.3187,187.88,187.87,4.55979258]
[1755365545541,8.2187,187.88,187.87,4.55979258]
[1755365558846,2.9,187.88,187.87,4.55979258]
[1755365560349,8.2185,187.89,187.88,2.93]
[1755365560951,5.3185,187.89,187.88,2.93]
[1755365561150,8.2185,187.89,187.88,2.93]
[1755365564350,2.9,187.89,187.87,1.62979258]
[1755365564557,2.9,187.89,187.88,2.93]
[1755365565959,2.9,187.94,187.88,2.93]
[1755365566159,2.9,187.94,187.87,6.94859258]
[1755365566160,2.9,187.92,187.89,1.62979258]
[1755365566359,3.99759864,187.91,187.9,2.93]
[1755365566556,3.99759864,187.94,187.9,2.93]
[1755365566756,3.99759864,187.93,187.9,2.93]
[1755365566960,2.9,187.91,187.9,2.93]
[1755365567259,6.89759864,187.91,187.9,2.93]
[1755365568759,2.9,187.91,187.9,2.93]
[1755365568959,5.94228294,187.99,187.9,3.06]
[1755365568960,3.03,187.95,187.9,3.06]
[1755365569263,3.03,187.93,187.92,1.62979258]
[1755365569455,7.02766954,187.93,187.92,1.62979258]
[1755365569656,7.02766954,187.93,187.92,4.68979258]
[1755365570754,3.03,187.93,187.92,4.68979258]
[1755365572261,5.3166,187.96,187.93,3.06]
[1755365572462,5.3166,187.96,187.95,4.68979258]
[1755365572656,8.3466,187.96,187.95,4.68979258]
[1755365572860,5.317,187.95,187.94,3.06]
[1755365573058,3.03,187.97,187.91,1.62979258]
[1755365573362,3.03,187.97,187.91,4.68979258]
[1755365573859,3.03,187.97,187.91,3.06]
[1755365575065,5.3175,187.93,187.91,3.06]
[1755365575262,3.03,187.92,187.91,3.06]
[1755365580765,8.3476,187.92,187.91,3.06]
[1755365580967,3.03,187.92,187.9,4.68979258]
[1755365581468,8.3476,187.92,187.91,3.06]
[1755365583768,3.03,187.89,187.87,4.68979258]
[1755365583967,3.03,187.95,187.88,3.06]
[1755365584165,3.03,187.95,187.9,3.06]
[1755365585064,3.03,187.95,187.91,3.06]
[1755365585569,3.99931385,187.94,187.91,3.06]
[1755365585864,3.03,187.92,187.91,3.06]
[1755365586057,7.02931385,187.92,187.91,3.06]
[1755365586261,3.03,187.91,187.88,1.62979258]
[1755365586566,3.03,187.91,187.87,3.06]
[1755365586968,1.62979258,187.94,187.87,3.06]
[1755365586969,3.03,187.89,187.87,3.06]
[1755365587665,1.62979258,187.9,187.84,1.62979258]
[1755365587869,1.62979258,187.86,187.81,3.06]
[1755365588165,3.03,187.84,187.8,1.62979258]
[1755365588360,4.65979258,187.84,187.79,3.06]
[1755365588556,4.02592149,187.83,187.79,3.06]
[1755365588758,3.03,187.83,187.79,3.06]
[1755365588961,3.03,187.83,187.8,3.06]
[1755365589165,3.03,187.83,187.81,3.06]
[1755365590869,3.03,187.83,187.78,1.62979258]
[1755365591165,3.03,187.83,187.79,3.06]
[1755365591468,5.3212,187.8,187.79,3.06]
[1755365591770,8.3512,187.8,187.79,3.06]
[1755365596170,3.03,187.8,187.79,3.06]
[1755365608481,8.351,187.8,187.79,3.06]
[1755365626493,5.3208,187.81,187.79,3.06]
[1755365626698,2.93,187.83,187.79,3.06]
[1755365627087,5.3212,187.8,187.77,5.3217]
[1755365627291,2.93,187.79,187.77,5.3217]
[1755365627696,2.93,187.8,187.78,8.1414]
[1755365627896,2.93,187.85,187.79,2.82]
[1755365628102,2.93,187.87,187.85,2.82]
[1755365628794,2.97,187.86,187.85,2.82]
[1755365628995,2.97,187.87,187.85,2.82]
[1755365632009,2.97,187.86,187.85,2.82]
[1755365633510,2.97,187.92,187.85,2.82]
[1755365633712,2.97,187.9,187.88,3.11]
[1755365634009,6.99438507,187.89,187.88,3.11]
[1755365637313,2.97,187.89,187.88,3.11]
[1755365637911,8.2884,187.89,187.88,3.11]
[1755365640315,5.3182,187.9,187.87,6.94869258]
[1755365640518,2.97,187.91,187.88,3.11]
[1755365640816,2.97,187.91,187.9,3.11]
[1755365641017,1.62979258,187.95,187.9,3.11]
[1755365641216,2.97,187.93,187.9,3.11]
[1755365641615,5.3176,187.92,187.9,3.11]
[1755365641814,8.2876,187.92,187.9,3.11]
[1755365643617,2.97,187.91,187.9,3.11]
[1755365644414,8.2879,187.91,187.9,3.11]
[1755365648824,5.3177,187.92,187.9,3.11]
[1755365649014,8.2877,187.92,187.9,3.11]
[1755365649620,2.97,187.92,187.91,4.73979258]
[1755365650323,8.2874,187.93,187.92,3.11]
[1755365652220,5.3171,187.94,187.92,3.11]
[1755365652425,8.2871,187.94,187.92,3.11]
[1755365653423,2.97,187.93,187.92,3.11]
[1755365653927,5.3171,187.94,187.92,3.11]
[1755365654227,8.2871,187.94,187.92,3.11]
[1755365654926,8.2873,187.93,187.92,3.11]
[1755365659431,1.62979258,187.93,187.87,4.52979258]
[1755365659730,2.88,187.92,187.88,2.9]
[1755365660431,2.88,187.92,187.89,2.9]
[1755365660833,8.1984,187.9,187.89,2.9]
[1755365662132,8.1987,187.88,187.87,4.52979258]
[1755365662634,2.88,187.88,187.87,4.52979258]
[1755365667841,8.1988,187.88,187.87,4.52979258]
[1755365671942,1.62979258,187.91,187.81,2.9]
[1755365672137,2.88,187.88,187.81,1.62979258]
[1755365672340,2.88,187.86,187.79,1.62979258]
[1755365672546,2.88,187.86,187.82,2.9]
[1755365672847,2.88,187.84,187.8,2.9]
[1755365673044,2.88,187.81,187.8,2.9]
[1755365674447,8.2007,187.81,187.8,2.9]
[1755365677543,8.2007,187.81,187.76,2.54505638]
[1755365677749,2.88,187.79,187.77,2.9]
[1755365678141,2.54505638,187.89,187.77,2.9]
[1755365678342,5.3213,187.8,187.77,2.9]
[1755365678548,2.88,187.79,187.77,2.9]
[1755365682147,5.3213,187.8,187.77,2.9]
[1755365682345,2.88,187.78,187.77,2.9]
[1755365691950,2.88,187.78,187.77,8.2219]
[1755365692151,2.88,187.78,187.77,8.2719]
[1755365694655,2.88,187.78,187.77,2.95]
[1755365696559,2.88,187.78,187.77,8.2719]
[1755365696754,2.88,187.78,187.77,9.9011016]
[1755365697161,1.6292016,187.84,187.78,5.3216]
[1755365697458,2.97,187.79,187.78,134.3416]
[1755365697956,2.97,187.79,187.78,137.2916]
[1755365700264,2.97,187.79,187.78,131.97]
[1755365702769,8.2911,187.8,187.79,2.95]
[1755365713386,5.3211,187.8,187.79,2.95]
[1755365714081,8.2911,187.8,187.79,2.95]
[1755365724680,5.3213,187.79,187.78,129.02]
[1755365724886,8.1713,187.79,187.78,131.97]
[1755365727486,8.1711,187.8,187.79,2.95]
[1755365727782,2.85,187.81,187.79,2.95]
[1755365728188,2.85,187.8,187.79,4.5792016]
[1755365729090,2.85,187.8,187.79,9.9005016]
[1755365729487,5.3205,187.82,187.79,9.9005016]
[1755365729787,2.85,187.81,187.8,2.95]
[1755365734390,8.1707,187.81,187.8,2.95]
[1755365738297,8.1713,187.79,187.78,131.97]
[1755365739090,5.3213,187.79,187.78,131.97]
[1755365739297,2.85,187.8,187.78,129.02]
[1755365739298,8.1711,187.8,187.78,129.02]
[1755365739497,8.1711,187.8,187.79,2.95]
[1755365739797,12.31584875,187.8,187.79,2.95]
[1755365742700,5.3216,187.78,187.77,4.5792016]
[1755365742903,8.1716,187.78,187.77,2.95]
[1755365743101,2.85,187.8,187.75,128.96]
[1755365743299,5.77205552,187.79,187.73,2.95]
[1755365743599,2.85,187.77,187.73,2.95]
[1755365743799,4.14285392,187.76,187.73,2.95]
[1755365743993,2.85,187.74,187.73,2.95]
[1755365746402,2.85,187.74,187.69,1.6292016]
[1755365746597,6.9846511,187.74,187.69,1.6292016]
[1755365746802,5.3238,187.71,187.7,2.95]
[1755365747402,8.1738,187.71,187.7,2.95]
[1755365755112,2.85,187.71,187.7,2.95]
[1755365761421,2.93,187.7,187.68,134.2843]
[1755365761920,2.93,187.7,187.69,3.08]
[1755365762919,2.93,187.7,187.69,8.4041]
[1755365764915,2.93,187.7,187.69,5.3241]
[1755365765123,2.93,187.7,187.68,128.96]
[1755365765318,2.93,187.7,187.66,3.08]
[1755365765519,1.6292016,187.69,187.64,132.06]
[1755365765720,2.93,187.68,187.64,132.06]
[1755365765916,2.93,187.68,187.65,3.08]
[1755365766224,5.3253,187.66,187.65,3.08]
[1755365766418,8.2553,187.66,187.65,3.08]
[1755365766619,2.93,187.71,187.65,3.08]
[1755365766827,2.93,187.71,187.7,1.6292016]
[1755365767033,2.93,187.72,187.71,3.08]
[1755365767221,2.93,187.77,187.71,3.08]